bitfinex/quotes_SOLUSD_20260304
["timestamp","ask_amount","ask_price","bid_price","bid_amount"]
[1772640223351,10.76177083,92.922,92.835,4.59675109]
[1772640224577,3.69383402,92.952,92.835,4.59675109]
[1772640224578,10.76103171,92.928,92.845,0.28432314]
[1772640224759,4.13772528,92.927,92.85,4.31242795]
[1772640225343,4.13772528,92.925,92.85,4.31242795]
[1772640225558,4.13772528,92.909,92.836,37.70089188]
[1772640225758,4.42204842,92.894,92.837,4.31242795]
[1772640226039,4.13772528,92.881,92.836,10.77168339]
[1772640226558,10.76553736,92.889,92.837,4.31242795]
[1772640226760,4.13772528,92.888,92.837,4.31242795]
[1772640226952,8.61134136,92.9,92.837,4.31242795]
[1772640227147,4.13772528,92.909,92.837,4.31242795]
[1772640227349,10.76240905,92.916,92.837,4.31242795]
[1772640227350,4.13772528,92.889,92.837,4.31242795]
[1772640227547,37.66843169,92.916,92.837,4.31242795]
[1772640227548,0.28432314,92.902,92.837,4.31242795]
[1772640228057,4.13772528,92.903,92.837,4.31242795]
[1772640228256,4.13772528,92.899,92.837,4.31242795]
[1772640228466,4.13772528,92.889,92.837,4.31242795]
[1772640228766,4.13772528,92.887,92.838,10.77145134]
[1772640229146,4.13772528,92.887,92.839,4.41513001]
[1772640229562,37.67978639,92.888,92.775,43.11473048]
[1772640229563,12.74906664,92.87,92.826,4.41513001]
[1772640229862,134.57066571,92.888,92.801,10.77563102]
[1772640229863,8.61134136,92.85,92.801,10.77563102]
[1772640230042,8.61134136,92.88,92.785,4.41513001]
[1772640230043,8.61134136,92.84,92.785,4.41513001]
[1772640230246,8.61134136,92.84,92.786,10.77748798]
[1772640230444,8.61134136,92.84,92.75,43.12651215]
[1772640230445,3.93972528,92.815,92.756,4.41513001]
[1772640230641,3.93972528,92.815,92.705,43.14759736]
[1772640230642,8.61134136,92.79,92.728,4.41513001]
[1772640231143,37.71185983,92.809,92.728,4.41513001]
[1772640231144,0.28432314,92.799,92.728,4.41513001]
[1772640231360,8.61134136,92.79,92.728,4.41513001]
[1772640232367,4.22404842,92.789,92.728,4.41513001]
[1772640232664,10.77830112,92.779,92.73,4.41513001]
[1772640232863,3.93972528,92.77,92.723,10.784739]
[1772640233261,3.93972528,92.769,92.716,4.41513001]
[1772640233459,0.28432314,92.767,92.702,4.41513001]
[1772640233667,8.61134136,92.77,92.702,4.41513001]
[1772640233668,0.28432314,92.761,92.702,4.41513001]
[1772640233875,8.61134136,92.77,92.702,4.41513001]
[1772640234078,0.28432314,92.759,92.689,4.41513001]
[1772640234256,8.61134136,92.75,92.693,4.41513001]
[1772640234567,4.22404842,92.773,92.695,4.41513001]
[1772640234867,3.93972528,92.768,92.695,4.41513001]
[1772640235068,0.28432314,92.758,92.695,4.41513001]
[1772640235249,4.22404842,92.755,92.695,4.41513001]
[1772640235559,12.55106664,92.77,92.695,4.41513001]
[1772640235956,3.93972528,92.77,92.695,4.41513001]
[1772640236159,10.77888201,92.774,92.699,4.41513001]
[1772640236778,0.03939725,92.784,92.704,4.69945315]
[1772640237489,8.61134136,92.88,92.704,4.69945315]
[1772640237490,10.77621043,92.797,92.704,4.69945315]
[1772640237776,3.93972528,92.826,92.712,3.69383402]
[1772640237982,3.93972528,92.823,92.734,0.28432314]
[1772640238278,3.93972528,92.824,92.747,4.41513001]
[1772640238462,0.28432314,92.809,92.747,4.41513001]
[1772640238659,0.28432314,92.807,92.749,4.41513001]
[1772640239071,0.14216157,92.807,92.749,4.41513001]
[1772640239387,4.08188685,92.807,92.749,4.41513001]
[1772640239615,4.08188685,92.779,92.722,4.41513001]
[1772640239884,0.28432314,92.774,92.722,4.41513001]
[1772640240181,139.51144061,92.808,92.722,4.41513001]
[1772640240182,3.93972528,92.789,92.722,4.41513001]
[1772640240482,4.22404842,92.788,92.722,4.41513001]
[1772640240685,4.22404842,92.788,92.724,4.41513001]
[1772640240686,0.28432314,92.786,92.724,4.41513001]
[1772640240862,10.77737183,92.787,92.728,4.41513001]
[1772640241179,10.77226357,92.831,92.758,4.41513001]
[1772640241360,8.61134136,92.86,92.726,3.69383402]
[1772640241361,3.93972528,92.843,92.768,4.41513001]
[1772640241564,8.61134136,92.84,92.768,4.41513001]
[1772640241880,37.69642529,92.847,92.778,4.41513001]
[1772640242085,3.93972528,92.846,92.778,4.41513001]
[1772640242384,10.76982591,92.853,92.788,4.41513001]
[1772640242683,3.93972528,92.862,92.748,4.82477569]
[1772640242684,3.93972528,92.876,92.795,4.69945315]
[1772640242978,3.93972528,92.874,92.798,4.41513001]
[1772640243360,37.68506056,92.875,92.798,4.41513001]
[1772640243361,3.93972528,92.869,92.798,4.41513001]
[1772640243567,3.93972528,92.859,92.798,4.41513001]
[1772640243786,80.7537012,92.875,92.798,4.41513001]
[1772640243787,4.22404842,92.858,92.798,4.41513001]
[1772640244175,4.22404842,92.839,92.747,4.41513001]
[1772640244384,4.08188685,92.823,92.747,4.41513001]
[1772640244559,3.93972528,92.819,92.747,4.41513001]
[1772640244761,3.69383402,92.827,92.722,86.27911798]
[1772640244762,3.93972528,92.817,92.749,4.41513001]
[1772640244985,8.61134136,92.81,92.749,4.41513001]
[1772640245361,3.93972528,92.817,92.749,4.41513001]
[1772640245564,3.93972528,92.817,92.694,1.07881847]
[1772640245565,8.61134136,92.78,92.732,4.41513001]
[1772640245785,8.61134136,92.78,92.732,15.19879409]
[1772640245996,8.61134136,92.8,92.733,4.41513001]
[1772640246173,3.93972528,92.799,92.733,4.41513001]
[1772640246484,3.93972528,92.799,92.732,10.78366408]
[1772640246485,8.61134136,92.81,92.737,4.41513001]
[1772640246697,3.93972528,92.817,92.737,4.41513001]
[1772640246865,3.69383402,92.825,92.739,4.41513001]
[1772640246866,3.93972528,92.799,92.739,4.41513001]
[1772640247591,8.61134136,92.79,92.739,4.41513001]
[1772640248091,0.28432314,92.809,92.739,4.41513001]
[1772640248296,43.08255453,92.846,92.738,37.74073195]
[1772640248297,10.77144913,92.839,92.753,4.41513001]
[1772640248593,0.03939725,92.838,92.757,4.41513001]
[1772640248769,4.22404842,92.829,92.762,4.41513001]
[1772640248965,3.90032802,92.769,92.693,4.41513001]
[1772640249185,0.28432314,92.749,92.693,4.41513001]
[1772640249400,3.69383402,92.767,92.693,4.41513001]
[1772640249577,3.69383402,92.767,92.692,10.78841755]
[1772640249578,0.28432314,92.789,92.696,4.48030137]
[1772640249900,0.28432314,92.786,92.696,4.48030137]
[1772640250080,8.5976433,92.81,92.698,4.48030137]
[1772640250285,0.28432314,92.799,92.709,0.28432314]
[1772640250481,0.28432314,92.799,92.716,4.48030137]
[1772640250883,0.28432314,92.797,92.721,4.48030137]
[1772640251189,0.03900328,92.796,92.721,4.48030137]
[1772640251389,0.28432314,92.797,92.727,4.48030137]
[1772640251610,0.03900328,92.796,92.727,4.48030137]
[1772640251892,8.5976433,92.78,92.727,4.48030137]
[1772640252392,0.03900328,92.779,92.727,4.48030137]
[1772640252886,37.72405393,92.779,92.727,4.48030137]
[1772640253086,37.72405393,92.779,92.729,4.48030137]
[1772640253288,8.5976433,92.8,92.729,4.48030137]
[1772640253497,8.5976433,92.8,92.728,10.78422914]
[1772640253498,10.77354018,92.82,92.737,3.69383402]
[1772640253792,10.77354018,92.82,92.728,177.93978084]
[1772640253793,10.77354018,92.82,92.758,4.48030137]
[1772640254091,46.30503394,92.82,92.758,4.48030137]
[1772640254268,8.5976433,92.8,92.728,37.74480199]
[1772640254472,4.47450164,92.779,92.728,10.78422914]
[1772640254783,4.47450164,92.779,92.692,91.7015492]
[1772640254989,37.72446053,92.778,92.692,134.85521941]
[1772640255174,37.72446053,92.778,92.696,0.28432314]
[1772640255382,0.28432314,92.777,92.692,178.00888962]
[1772640255700,10.77841729,92.778,92.695,3.69383402]
[1772640255866,10.77841729,92.778,92.696,0.28432314]
[1772640256070,4.75882478,92.777,92.696,0.28432314]
[1772640256367,4.75882478,92.777,92.707,4.41513001]
[1772640257076,4.75882478,92.769,92.708,10.78655563]
[1772640257279,4.75882478,92.759,92.703,15.20218353]
[1772640257476,4.75882478,92.749,92.69,4.41513001]
[1772640257691,177.84771922,92.776,92.635,4.41513001]
[1772640257692,3.97815716,92.696,92.635,4.41513001]
[1772640257888,3.69383402,92.697,92.636,10.79493933]
[1772640257889,8.5976433,92.67,92.636,10.79493933]
[1772640258192,0.28432314,92.679,92.637,4.49999999]
[1772640258589,0.28432314,92.679,92.63,10.89559521]
[1772640258901,14.80247164,92.67,92.63,0.1]
[1772640259099,37.76883315,92.669,92.63,0.1]
[1772640259301,39.37591424,92.669,92.63,0.1]
[1772640259511,37.76883315,92.669,92.63,0.1]
[1772640259719,10.79109518,92.669,92.63,0.1]
[1772640260693,10.78981441,92.68,92.631,4.40030774]
[1772640260882,1.60708109,92.679,92.63,0.1]
[1772640261077,37.76516541,92.678,92.63,4.50030774]
[1772640261891,14.80247164,92.67,92.63,4.50030774]
[1772640262201,1.60708109,92.669,92.63,0.1]
[1772640262605,0.28432314,92.668,92.63,4.50030774]
[1772640263105,1.89140423,92.666,92.63,0.1]
[1772640263404,0.28432314,92.666,92.63,0.1]
[1772640264387,10.79132808,92.667,92.63,0.1]
[1772640264388,1.89140423,92.659,92.63,0.1]
[1772640264587,0.28432314,92.659,92.63,0.1]
[1772640265405,0.28432314,92.657,92.614,4.16432802]
[1772640265606,0.28432314,92.649,92.614,4.16432802]
[1772640265810,2.08102769,92.639,92.61,0.1]
[1772640265987,0.28432314,92.651,92.61,0.1]
[1772640266303,14.80247164,92.64,92.61,0.1]
[1772640266608,1.79670455,92.649,92.61,0.1]
[1772640267002,14.80247164,92.64,92.61,0.1]
[1772640267308,1.79670455,92.639,92.61,0.1]
[1772640267606,39.57817651,92.638,92.61,0.1]
[1772640267991,14.80247164,92.68,92.611,4.35586687]
[1772640268193,1.79670455,92.679,92.611,4.35586687]
[1772640268507,124.05475666,92.701,92.611,4.35586687]
[1772640268508,14.80247164,92.66,92.611,4.35586687]
[1772640268891,1.79670455,92.669,92.611,4.35586687]
[1772640269589,37.76924072,92.668,92.613,4.35586687]
[1772640269805,10.78783563,92.697,92.613,4.35586687]
[1772640269996,14.80247164,92.68,92.613,4.35586687]
[1772640270306,1.79670455,92.679,92.613,4.35586687]
[1772640270508,0.14216157,92.669,92.613,4.35586687]
[1772640270726,0.28432314,92.669,92.613,4.35586687]
[1772640270886,0.14216157,92.669,92.613,4.35586687]
[1772640271092,1.79670455,92.679,92.613,4.35586687]
[1772640271093,0.14216157,92.678,92.613,4.35586687]
[1772640271590,37.90691949,92.679,92.615,4.35586687]
[1772640271804,0.14216157,92.678,92.615,4.35586687]
[1772640272393,10.78993083,92.679,92.615,4.35586687]
[1772640272588,1.79670455,92.719,92.618,4.35586687]
[1772640272793,14.80247164,92.7,92.618,4.35586687]
[1772640273306,1.79670455,92.699,92.618,4.35586687]
[1772640273507,1.79670455,92.696,92.618,4.35586687]
[1772640273815,1.93886612,92.694,92.62,4.35586687]
[1772640274514,26.97017099,92.695,92.62,4.49092573]
[1772640274713,14.80247164,92.69,92.62,4.49092573]
[1772640274914,37.75823938,92.695,92.622,4.49092573]
[1772640275727,14.80247164,92.69,92.629,4.49092573]
[1772640275937,14.80247164,92.69,92.61,0.1]
[1772640275938,2.7336394,92.669,92.611,10.79785338]
[1772640276227,2.7336394,92.686,92.611,37.79248684]
[1772640277096,10.78923234,92.685,92.612,0.28432314]
[1772640277290,10.78923234,92.685,92.611,26.99463346]
[1772640277291,10.78923234,92.685,92.615,0.28432314]
[1772640277520,2.7336394,92.684,92.614,3.69383402]
[1772640277821,10.78923234,92.685,92.611,26.99463346]
[1772640277822,2.7336394,92.679,92.612,4.35586687]
[1772640279214,37.76924072,92.668,92.614,4.35586687]
[1772640279416,2.7336394,92.649,92.596,10.79952997]
[1772640279618,2.7336394,92.639,92.585,10.80085095]
[1772640279832,2.7336394,92.629,92.584,10.80100227]
[1772640280017,2.7336394,92.629,92.528,43.22979203]
[1772640280018,2.706303,92.609,92.558,10.80403638]
[1772640280325,2.706303,92.609,92.559,4.35586687]
[1772640281102,8.64049445,92.62,92.559,4.35586687]
[1772640281303,8.64049445,92.61,92.561,4.35586687]
[1772640281504,37.7892225,92.619,92.561,4.35586687]
[1772640281727,40.4955255,92.619,92.561,4.35586687]
[1772640282630,2.706303,92.618,92.561,4.35586687]
[1772640283133,8.64049445,92.61,92.561,4.35586687]
[1772640283303,2.706303,92.608,92.561,4.35586687]
[1772640283508,2.706303,92.608,92.563,4.35586687]
[1772640284607,2.706303,92.608,92.563,1.35586687]
[1772640284916,37.79330301,92.609,92.563,1.35586687]
[1772640284917,10.79808657,92.609,92.563,1.35586687]
[1772640285102,4.47884875,92.622,92.563,1.35586687]
[1772640285103,10.79667882,92.622,92.563,1.35586687]
[1772640285300,4.47884875,92.637,92.551,43.21911481]
[1772640285301,4.47884875,92.646,92.566,37.81085927]
[1772640285531,4.47884875,92.639,92.566,37.81085927]
[1772640285932,4.47884875,92.629,92.566,37.81085927]
[1772640286431,4.47884875,92.619,92.554,10.80450331]
[1772640286622,4.47884875,92.609,92.555,4.35586687]
[1772640287328,4.47884875,92.609,92.542,3.69383402]
[1772640287329,10.79820317,92.608,92.557,4.35586687]
[1772640287826,4.47884875,92.607,92.557,4.35586687]
[1772640288025,4.47884875,92.589,92.534,10.80683856]
[1772640288210,4.47884875,92.589,92.535,4.35586687]
[1772640288407,4.49673036,92.57,92.53,0.1]
[1772640288731,4.49673036,92.579,92.53,0.1]
[1772640288906,8.64049445,92.56,92.53,0.1]
[1772640289432,4.49673036,92.558,92.53,0.1]
[1772640290125,4.49673036,92.558,92.482,43.25133133]
[1772640290126,4.49673036,92.519,92.431,13.2725661]
[1772640290332,4.49673036,92.499,92.451,4.10840208]
[1772640290519,4.49673036,92.489,92.436,4.10840208]
[1772640290715,4.49673036,92.489,92.44,10.81782161]
[1772640290914,4.49673036,92.489,92.436,4.10840208]
[1772640291118,3.69383402,92.524,92.446,4.10840208]
[1772640291413,4.49673036,92.497,92.446,14.92548447]
[1772640291615,4.49673036,92.497,92.447,4.10840208]
[1772640291837,37.83865596,92.498,92.447,4.10840208]
[1772640293317,4.49673036,92.497,92.447,4.10840208]
[1772640293514,4.49673036,92.489,92.43,0.2]
[1772640293754,8.64049445,92.48,92.432,4.10840208]
[1772640294031,4.49673036,92.469,92.43,0.2]
[1772640294240,4.49673036,92.462,92.43,0.2]
[1772640294428,4.49673036,92.462,92.418,4.10840208]
[1772640294633,8.64049445,92.46,92.418,4.10840208]
[1772640294833,4.49673036,92.439,92.387,10.82401995]
[1772640295039,11.8686966,92.523,92.339,5.64951476]
[1772640295040,10.82401193,92.45,92.342,43.31704435]
[1772640295233,286.4988756,92.496,92.361,81.20310519]
[1772640295234,4.49673036,92.444,92.361,81.20310519]
[1772640295415,10.81747671,92.443,92.361,178.64683143]
[1772640295618,4.49673036,92.455,92.361,124.51142796]
[1772640295836,4.49673036,92.449,92.361,37.89478242]
[1772640296028,4.49673036,92.409,92.344,6.97769628]
[1772640296230,4.49673036,92.409,92.355,10.82778252]
[1772640296530,4.49673036,92.409,92.361,10.82708069]
[1772640296728,4.49673036,92.409,92.361,37.89478242]
[1772640297116,4.49673036,92.422,92.362,4.10840208]
[1772640297523,10.82005171,92.421,92.364,4.10840208]
[1772640297717,37.870181,92.421,92.364,4.10840208]
[1772640298023,4.49673036,92.433,92.364,4.10840208]
[1772640298338,10.81852997,92.434,92.37,4.10840208]
[1772640298918,4.49673036,92.433,92.37,4.10840208]
[1772640299320,37.86485491,92.434,92.344,4.10840208]
[1772640299321,4.49673036,92.419,92.344,4.10840208]
[1772640299534,4.49673036,92.409,92.35,10.82830759]
[1772640299841,4.49673036,92.389,92.331,4.10840208]
[1772640300047,4.49673036,92.389,92.334,4.10840208]
[1772640300418,4.49673036,92.389,92.322,0.94702237]
[1772640300419,4.49673036,92.369,92.322,0.94702237]
[1772640300619,4.49673036,92.359,92.322,0.94702237]
[1772640300929,8.64049445,92.4,92.322,0.94702237]
[1772640300930,4.49673036,92.379,92.332,4.10840208]
[1772640301534,4.49673036,92.399,92.334,4.10840208]
[1772640301720,4.49673036,92.379,92.334,4.10840208]
[1772640301918,124.43732684,92.416,92.334,4.10840208]
[1772640301919,4.49673036,92.399,92.334,4.10840208]
[1772640302126,4.49673036,92.415,92.338,0.14216157]
[1772640302428,4.49673036,92.415,92.337,4.25056365]
[1772640302429,4.49673036,92.44,92.369,4.10840208]
[1772640302627,10.81771075,92.441,92.369,4.10840208]
[1772640302628,4.49673036,92.429,92.369,4.10840208]
[1772640302829,8.64049445,92.41,92.351,4.10840208]
[1772640303043,4.49673036,92.389,92.335,4.10840208]
[1772640303239,210.94535972,92.441,92.331,10.8305986]
[1772640303240,4.49673036,92.379,92.331,10.8305986]
[1772640303427,10.82399138,92.388,92.331,4.10840208]
[1772640303630,4.49673036,92.41,92.331,27.07649651]
[1772640303829,4.49673036,92.41,92.338,4.10840208]
[1772640304142,4.49673036,92.41,92.34,4.10840208]
[1772640304443,4.49673036,92.439,92.358,4.10840208]
[1772640304635,4.49673036,92.439,92.37,4.10840208]
[1772640304836,37.86239723,92.44,92.338,4.10840208]
[1772640304837,4.49673036,92.429,92.338,4.10840208]
[1772640305144,4.49673036,92.439,92.36,4.10840208]
[1772640305445,4.49673036,92.437,92.364,3.69383402]
[1772640305629,4.49673036,92.437,92.365,0.28432314]
[1772640306348,37.86321642,92.438,92.361,37.89478242]
[1772640306349,4.49673036,92.429,92.361,37.89478242]
[1772640306546,4.49673036,92.399,92.35,10.82837033]
[1772640306747,4.49673036,92.418,92.331,37.90709511]
[1772640307046,4.49673036,92.406,92.331,135.38248256]
[1772640307340,4.49673036,92.406,92.332,0.28432314]
[1772640307547,10.82192522,92.405,92.339,4.10840208]
[1772640307750,4.49673036,92.399,92.343,4.10840208]
[1772640309241,4.49673036,92.389,92.343,4.10840208]
[1772640309622,15.32064688,92.388,92.329,4.10840208]
[1772640309928,15.32064688,92.388,92.334,4.10840208]
[1772640310524,4.49673036,92.388,92.338,4.10840208]
[1772640310734,4.49673036,92.388,92.34,4.10840208]
[1772640311049,8.68021724,92.45,92.352,0.28432314]
[1772640311356,8.68021724,92.44,92.369,4.10840208]
[1772640311543,37.86280681,92.439,92.371,4.10840208]
[1772640312730,10.8179448,92.439,92.379,4.10840208]
[1772640313555,15.30917764,92.486,92.401,4.10840208]
[1772640313723,4.49673036,92.485,92.409,4.10840208]
[1772640314334,37.8435655,92.486,92.419,4.10840208]
[1772640314841,42.34029586,92.486,92.419,4.10840208]
[1772640315039,10.81244728,92.486,92.423,4.10840208]
[1772640315238,27.02801582,92.497,92.429,4.10840208]
[1772640315239,10.81181193,92.492,92.429,4.10840208]
[1772640315452,8.68021724,92.5,92.404,4.39272522]
[1772640315655,8.68021724,92.5,92.392,280.82269756]
[1772640315656,8.68021724,92.48,92.409,4.39272522]
[1772640315865,4.82477569,92.498,92.409,4.10840208]
[1772640316150,8.68021724,92.48,92.409,4.10840208]
[1772640316747,8.68021724,92.47,92.409,4.10840208]
[1772640316952,8.68021724,92.47,92.405,37.87673827]
[1772640316953,3.69383402,92.496,92.419,4.10840208]
[1772640317230,37.83824689,92.499,92.408,3.69383402]
[1772640317231,37.83824689,92.499,92.429,4.10840208]
[1772640317448,1.01134157,92.489,92.429,4.10840208]
[1772640318155,38.85408873,92.488,92.431,4.10840208]
[1772640318536,8.68021724,92.48,92.431,4.10840208]
[1772640318745,1.01134157,92.479,92.417,4.27592403]
[1772640318945,1.01134157,92.469,92.404,4.27592403]
[1772640319165,8.68021724,92.45,92.404,4.27592403]
[1772640319349,1.01134157,92.449,92.404,4.27592403]
[1772640319682,1.01134157,92.487,92.404,4.27592403]
[1772640319963,8.68021724,92.48,92.41,4.27592403]
[1772640320165,9.69155881,92.47,92.41,4.27592403]
[1772640320454,9.69155881,92.47,92.371,43.30363425]
[1772640320455,1.01134157,92.419,92.364,4.27592403]
[1772640320636,8.68021724,92.41,92.364,4.27592403]
[1772640320836,8.68021724,92.4,92.333,4.27592403]
[1772640321065,1.01134157,92.409,92.333,4.27592403]
[1772640321257,8.68021724,92.43,92.336,4.27592403]
[1772640321437,1.01134157,92.434,92.351,0.28432314]
[1772640321632,1.01134157,92.434,92.352,4.27592403]
[1772640321831,8.68021724,92.44,92.352,4.27592403]
[1772640322049,8.68021724,92.44,92.335,3.69383402]
[1772640322050,37.86280681,92.439,92.362,0.28432314]
[1772640322256,37.86280681,92.439,92.369,4.27592403]
[1772640322456,38.87414838,92.439,92.369,4.27592403]
[1772640322649,3.69383402,92.427,92.369,4.27592403]
[1772640322854,8.68021724,92.41,92.369,4.27592403]
[1772640323059,8.68021724,92.41,92.354,4.27592403]
[1772640323560,1.01134157,92.435,92.354,4.27592403]
[1772640323733,1.01134157,92.435,92.36,4.49089232]
[1772640323934,37.86485491,92.434,92.362,4.49089232]
[1772640324160,1.01134157,92.419,92.362,4.49089232]
[1772640324365,1.01134157,92.419,92.33,43.42248144]
[1772640324366,1.01134157,92.399,92.348,4.49089232]
[1772640324659,8.68021724,92.39,92.35,4.49089232]
[1772640324857,1.01134157,92.389,92.338,10.82973663]
[1772640325057,3.69383402,92.415,92.33,0.1]
[1772640325058,1.01134157,92.379,92.33,0.1]
[1772640325240,1.01134157,92.349,92.33,0.1]
[1772640325439,8.68021724,92.4,92.285,4.49089232]
[1772640325440,1.01134157,92.377,92.285,4.49089232]
[1772640325642,1.01134157,92.359,92.285,4.49089232]
[1772640326074,11.8806358,92.428,92.272,47.04387649]
[1772640326075,10.82743238,92.358,92.29,4.49089232]
[1772640326266,10.82743238,92.358,92.286,10.83587976]
[1772640326267,1.01134157,92.339,92.286,10.83587976]
[1772640326578,1.01134157,92.339,92.287,4.49089232]
[1772640326783,1.01134157,92.339,92.27,4.59089232]
[1772640326960,1.01134157,92.339,92.024,28.69074046]
[1772640326961,8.68021724,92.31,92.262,4.49089232]
[1772640327277,8.68021724,92.34,92.183,1.08479871]
[1772640327278,3.69383402,92.337,92.264,4.49089232]
[1772640327677,1.01134157,92.329,92.264,4.49089232]
[1772640328064,10.83095052,92.328,92.266,4.49089232]
[1772640328370,1.01134157,92.327,92.266,4.49089232]
[1772640328575,37.90832683,92.328,92.266,4.49089232]
[1772640328788,37.89724432,92.355,92.269,4.49089232]
[1772640328966,37.89724432,92.355,92.268,3.69383402]
[1772640328967,1.01134157,92.354,92.279,4.49089232]
[1772640329978,37.89806503,92.353,92.281,4.49089232]
[1772640330278,1.01134157,92.339,92.281,4.49089232]
[1772640330582,1.01134157,92.339,92.23,6.00902159]
[1772640330583,8.68021724,92.34,92.27,4.49089232]
[1772640330785,1.01134157,92.343,92.27,4.49089232]
[1772640330962,1.01134157,92.343,92.274,4.49089232]
[1772640331171,37.89806503,92.353,92.29,4.49089232]
[1772640331471,10.82715522,92.361,92.296,4.49089232]
[1772640331672,10.82461951,92.382,92.3,4.49089232]
[1772640331863,10.82461951,92.382,92.307,4.49089232]
[1772640332068,10.82145678,92.409,92.322,4.77521546]
[1772640332264,10.82145678,92.409,92.325,3.69383402]
[1772640332570,10.82145678,92.409,92.355,4.49089232]
[1772640332767,10.82145678,92.409,92.329,4.82477569]
[1772640332768,37.85871128,92.449,92.367,4.49089232]
[1772640333074,37.85871128,92.449,92.375,4.49089232]
[1772640333075,1.01134157,92.439,92.375,4.49089232]
[1772640333274,1.01134157,92.439,92.333,3.69383402]
[1772640333275,8.68021724,92.43,92.369,4.49089232]
[1772640333567,8.68021724,92.4,92.33,4.49089232]
[1772640333776,7.1808487,92.399,92.33,4.49089232]
[1772640333970,35.73082379,92.42,92.34,4.49089232]
[1772640334173,35.73082379,92.42,92.339,3.69383402]
[1772640334174,8.68021724,92.41,92.35,4.49089232]
[1772640334362,1.01134157,92.394,92.337,4.49089232]
[1772640334684,1.01134157,92.394,92.291,43.3410947]
[1772640334685,8.68021724,92.38,92.306,0.14216157]
[1772640334875,7.17963814,92.379,92.309,4.49089232]
[1772640335068,1.01134157,92.41,92.323,4.49089232]
[1772640335287,7.1923521,92.409,92.335,4.49089232]
[1772640335485,7.1923521,92.408,92.339,4.49089232]
[1772640335782,27.05060655,92.42,92.354,0.28432314]
[1772640336004,37.87141032,92.418,92.361,4.49089232]
[1772640336170,7.19218789,92.417,92.361,4.49089232]
[1772640336591,8.91047685,92.441,92.36,37.89519272]
[1772640336592,10.81607268,92.455,92.377,4.49089232]
[1772640336891,7.19380446,92.454,92.389,4.49089232]
[1772640337097,7.19380446,92.453,92.394,0.28432314]
[1772640337269,7.19380446,92.452,92.399,4.49089232]
[1772640337473,7.19380446,92.451,92.399,4.49089232]
[1772640337773,1.01134157,92.479,92.409,4.49089232]
[1772640337774,10.81530368,92.462,92.409,4.49089232]
[1772640337976,27.03605366,92.47,92.411,4.49089232]
[1772640338368,10.81338264,92.478,92.419,4.49089232]
[1772640338693,37.84683924,92.478,92.424,4.49089232]
[1772640339187,10.81197967,92.49,92.428,4.49089232]
[1772640339372,37.84192885,92.49,92.428,4.49089232]
[1772640339690,4.29151187,92.479,92.428,4.49089232]
[1772640339887,37.84192885,92.49,92.428,4.49089232]
[1772640340187,37.84192885,92.49,92.41,37.87468888]
[1772640340188,4.29151187,92.489,92.43,4.49089232]
[1772640340370,37.84192885,92.49,92.43,4.49089232]
[1772640340571,4.29151187,92.469,92.416,4.49089232]
[1772640341091,4.29151187,92.469,92.417,10.82052003]
[1772640341268,4.29151187,92.469,92.416,15.31143388]
[1772640341466,4.29151187,92.439,92.393,4.49089232]
[1772640341668,4.29151187,92.439,92.379,4.49089232]
[1772640341869,4.29151187,92.439,92.327,43.32383062]
[1772640341870,4.29151187,92.419,92.364,4.49089232]
[1772640342076,10.82040295,92.418,92.366,4.49089232]
[1772640342386,37.87141032,92.418,92.366,4.49089232]
[1772640344089,10.81911521,92.429,92.368,4.49089232]
[1772640344681,4.29151187,92.428,92.368,4.49089232]
[1772640344981,10.81911521,92.429,92.368,4.49089232]
[1772640345185,10.81911521,92.429,92.367,10.82637738]
[1772640345186,8.68021724,92.47,92.371,4.77521546]
[1772640345364,10.81431815,92.47,92.382,4.49089232]
[1772640345568,10.81431815,92.47,92.387,0.28432314]
[1772640345787,4.29151187,92.469,92.397,4.77521546]
[1772640346170,4.29151187,92.459,92.398,15.3136374]
[1772640346369,4.29151187,92.459,92.399,4.49089232]
[1772640346785,4.29151187,92.459,92.367,43.30525936]
[1772640346786,8.68021724,92.44,92.387,4.49089232]
[1772640346994,4.29151187,92.439,92.38,10.82477515]
[1772640347172,8.68021724,92.43,92.374,4.49089232]
[1772640347490,1.21774482,92.439,92.374,4.49089232]
[1772640347686,8.68021724,92.43,92.374,4.49089232]
[1772640347877,12.97172911,92.43,92.374,4.49089232]
[1772640348209,8.68021724,92.41,92.356,4.49089232]
[1772640348372,8.68021724,92.4,92.356,4.49089232]
[1772640348690,4.40967927,92.409,92.356,4.49089232]
[1772640349387,42.28067981,92.419,92.356,4.49089232]
[1772640349571,10.81899816,92.43,92.359,4.71968325]
[1772640349890,7.19774385,92.429,92.359,4.71968325]
[1772640350087,7.19774385,92.428,92.359,4.71968325]
[1772640350299,10.81946638,92.426,92.366,4.43536011]
[1772640350590,10.81771075,92.441,92.366,4.43536011]
[1772640351070,10.81771075,92.441,92.371,4.71968325]
[1772640351486,10.81771075,92.441,92.376,4.43536011]
[1772640351665,10.81642365,92.452,92.381,4.71968325]
[1772640351870,4.40967927,92.439,92.381,4.43536011]
[1772640352086,4.40967927,92.429,92.381,4.43536011]
[1772640352279,8.68021724,92.41,92.365,10.82661181]
[1772640352795,8.68021724,92.41,92.364,4.43536011]
[1772640352796,4.40967927,92.409,92.364,4.43536011]